Cogmind - Beta 15 @@@ ROGUE MODE // 2025.07.23 @ 12:55:26 Player: carterz30cal Result: Destroyed by CG-R5X(R) with Subdweller Shrapnel Launcher Performance ------------- Evolutions (0) 0 Regions Visited (3) 600 Robots Destroyed (23) 115 Value Destroyed (536) 536 Prototype IDs (2) 40 Alien Tech Used (0) 0 Bonus (0) 0 TOTAL SCORE: 1291 Bonus ------- None Cogmind --------- Core Integrity 0/250 Matter 228/300 Energy 100/100 System Corruption 0% Temperature Cool (0) Movement Core (50) Location -10/Subcaves Parts ------- > --- POWER (1) -------- (None) > --- PROPULSION (2) --- (None) > --- UTILITY (2) ------ (None) > --- WEAPON (2) ------- Light Assault Rifle > --- INVENTORY (5) ---- Light Ion Engine Aluminum Leg Makeshift System Shield Tractor Beam Peak State ------------ > --- POWER ------------ Ion Engine > --- PROPULSION ------- Light Treads Light Treads > --- UTILITY ---------- Large Storage Unit Improved Terrain Scanner > --- WEAPON ----------- Beam Cannon Battle Cannon > --- INVENTORY -------- Light Ion Engine Aluminum Leg Aluminum Leg Medium Matter Pod Sensor Array Tractor Beam Small Laser Small Laser Light Assault Rifle Light Cannon [Rating: 11] Favorites ----------- Power Light Ion Engine Engine Light Ion Engine Propulsion Light Treads Treads Light Treads Leg Aluminum Leg Utility Improved Terrain Scanner Device Improved Terrain Scanner Storage Large Storage Unit Protection Scrap Shield Weapon Light Cannon Energy Gun Small Laser Energy Cannon Beam Cannon Ballistic Gun Light Assault Rifle Ballistic Cannon Light Cannon Build | -11 -10 -10 -10 ------- Run | Yrd Mat Min Sub Slots Evolved . | . . . . Power . | . . . . Propulsion . | . . . . Utility . | . . . . Weapon . | . . . . Parts Attached 13 | 3 3 3 4 Power 1 | . . 1 . Engine 1 | . . 1 . Core . | . . . . Reactor . | . . . . Propulsion 3 | 2 . . 1 Treads 2 | 2 . . . Leg 1 | . . . 1 Wheel . | . . . . Hover . | . . . . Flight . | . . . . Utility 4 | 1 1 . 2 Device 2 | 1 . . 1 Storage 1 | . 1 . . Processor . | . . . . Hackware . | . . . . Protection 1 | . . . 1 Artifact . | . . . . Weapon 5 | . 2 2 1 Energy Gun 1 | . . . 1 Energy Cannon 1 | . . 1 . Ballistic Gun 1 | . 1 . . Ballistic Cannon 2 | . 1 1 . Launcher . | . . . . Special Weapon . | . . . . Impact Weapon . | . . . . Slashing Weapon . | . . . . Piercing Weapon . | . . . . Special Melee Weapon . | . . . . Unidentified Prototypes . | . . . . Parts Lost 11 | . . . 11 Power 1 | . . . 1 Propulsion 3 | . . . 3 Utility 3 | . . . 3 Weapon 4 | . . . 4 Highest Loss Streak 10 | . . . 10 To Critical Strikes . | . . . . Average Backups 9 | 6 8 9 9 Power 1 | 1 1 1 1 Propulsion 2 | 4 2 2 1 Utility 2 | . 2 3 2 Weapon 3 | 1 2 3 3 Tool/Special . | . . . . Unused Backups 9 | . 2 2 5 Power 2 | . . 2 . Propulsion 1 | . . . 1 Utility 5 | . 2 . 3 Weapon 1 | . . . 1 Tool/Special . | . . . . Average Slot Usage (%) 99 | . 100 100 92 Engine 13 | . 14 14 11 Treads 27 | . 28 28 23 Device 13 | . 14 14 13 Storage 13 | . 14 14 13 Energy Cannon 6 | . . 11 13 Ballistic Gun 7 | . 13 2 . Ballistic Cannon 13 | . 12 14 11 Peak Build Rating 11 | 9 9 11 11 Average Rating 9 | 6 8 10 8 On Entrance 8 | 6 9 9 11 Naked Turns . | . . . . Heaviest Build 32 | 11 28 32 32 Greatest Support 40 | 40 40 40 40 Greatest Overweight (x) 8 | . . . 8 Average Overweight (x) . | . . . . Largest Inventory Capacity 15 | 8 15 15 15 Average Capacity 14 | 8 13 15 14 Most Carried 10 | 6 9 10 10 Average Carried 9 | 6 8 9 9 Final Capacity 15 | 8 15 15 5 Final Carried 10 | 6 9 10 4 Class Distribution -------------------- 100% | Mutant Dominant Class ---------------- Mutant | -10/Materials Mutant | -10/Mines Mutant | -10/Subcaves Resources | -11 -10 -10 -10 ----------- Run | Yrd Mat Min Sub Matter Collected 802 | 200 381 221 . Remotely . | . . . . Salvage Created 847 | 84 448 162 153 Parts 45 | 4 25 9 7 Haulers Intercepted . | . . . . Recyclers Shooed 4 | 1 3 . . Parts Field Recycled . | . . . . Retrieved Matter . | . . . . Parts Self-Destructed . | . . . . Prevented . | . . . . Kills | -11 -10 -10 -10 ------- Run | Yrd Mat Min Sub Combat Hostiles Destroyed 13 | . 4 5 4 Guns 1 | . 1 . . Cannons 12 | . 3 5 4 Classes Destroyed 10 | 2 6 1 1 Worker 1 | . 1 . . Builder 1 | . 1 . . Tunneler 2 | 1 . 1 . Recycler 4 | 1 3 . . Operator 1 | . 1 . . Watcher 2 | . 2 . . Swarmer 1 | . 1 . . Grunt 7 | . 3 4 . Subdweller 4 | . . . 4 Assembled 1 | . . 1 . Best Kill Streak 3 | 2 2 2 3 Combat Bots Only 3 | . 1 2 3 Max Kills in Single Turn 1 | 1 1 1 1 Gunslinging . | . . . . Exploded . | . . . . Melee . | . . . . Uniques/NPCs Destroyed . | . . . . Combat | -11 -10 -10 -10 -------- Run | Yrd Mat Min Sub Hostile Shots Fired 91 | . 24 15 52 Missed 22 | . 3 4 15 Hits 69 | . 21 11 37 Projectile 69 | . 21 11 37 AOE 9 | . . . 9 Critical Strikes 1 | . . 1 . Damage Taken 1421 | . 271 150 1000 Core 267 | . 27 15 225 Absorbed by Shields . | . . . . Core Remaining (%) 100 | 100 . . . Volleys Fired 121 | 3 52 47 19 Largest 2 | 2 2 2 2 Hottest 100 | 60 60 93 100 Shots Fired 241 | 6 104 94 37 Gun 82 | 6 63 3 10 Cannon 159 | . 41 91 27 Launcher . | . . . . Special . | . . . . Kinetic 160 | 3 93 50 14 Thermal 81 | 3 11 44 23 Explosive . | . . . . Electromagnetic . | . . . . Robot Hit Streak 14 | 3 10 5 14 Robot Miss Streak 5 | 1 5 2 2 Penetration Max . | . . . . Secondary Targets . | . . . . Shots Hit Robots 112 | 4 66 16 26 Core Hits 45 | 3 25 8 9 Critical Kills . | . . . . Critical Parts Destroyed . | . . . . Critical Strikes 2 | . 2 . . Blast 2 | . 2 . . Melee Attacks . | . . . . Impact . | . . . . Slashing . | . . . . Piercing . | . . . . Sneak Attacks . | . . . . Combat Hostiles . | . . . . Follow-up Attacks . | . . . . Damage Inflicted 1524 | 42 799 302 381 Guns 475 | 42 362 . 71 Cannons 1049 | . 437 302 310 Explosions . | . . . . Melee . | . . . . Ramming . | . . . . Kinetic 980 | 9 678 177 116 Thermal 544 | 33 121 125 265 Explosive . | . . . . Electromagnetic . | . . . . Impact . | . . . . Slashing . | . . . . Piercing . | . . . . Highest Corruption . | . . . . Average Corruption . | . . . . Corruption Purged . | . . . . Corruption Blocked . | . . . . Overload Shots . | . . . . Overflow Damage . | . . . . Projectiles . | . . . . Explosions . | . . . . Melee . | . . . . Knockbacks 7 | . 2 3 2 Impact . | . . . . Kinetic 7 | . 2 3 2 Secondary . | . . . . Self-Inflicted Damage . | . . . . Shots . | . . . . Rammed . | . . . . Targets Rammed . | . . . . Kicked . | . . . . Crushed . | . . . . Highest Temperature 278 | 20 52 278 3 Average Temperature 65 | 15 18 96 3 Received Heat Transfer 367 | . 183 136 48 Siege Activations . | . . . . Martial Activations . | . . . . Shielding Activations . | . . . . Robots Disrupted . | . . . . Combat Hostiles . | . . . . Robots Corrupted . | . . . . Combat Hostiles . | . . . . Parts Fried . | . . . . Impact Corruptions . | . . . . Robots Melted . | . . . . Combat Hostiles . | . . . . Parts Melted 1 | . . . 1 Heat Transferred 1178 | 75 275 259 569 Parts Sabotaged . | . . . . Parts Stolen . | . . . . Parts Stripped . | . . . . Power Chain Reactions . | . . . . Alert | -11 -10 -10 -10 ------- Run | Yrd Mat Min Sub Maximum Alert Level . | . . . . Low Security (%) 100 | 100 100 100 . Level 1 . | . . . . Level 2 . | . . . . Level 3 . | . . . . Level 4 . | . . . . Level 5 . | . . . . High Security . | . . . . Max Security . | . . . . Peak Influence 51 | 10 51 42 . Initial . | . . . . Average 3 | 5 4 2 . Influence Increases 314 | 10 204 100 . Destroy 0b10 Robot/C 160 | . 80 80 . Destroy 0b10 Robot/NC 55 | 10 40 5 . Destroy Leader 34 | . 24 10 . Successful Hack 35 | . 30 5 . Disable Machine 15 | . 15 . . Lose Combat Pursuer 15 | . 15 . . Influence Decreases 314 | 10 204 100 . Time Decay 314 | 10 204 100 . Squads Dispatched 2 | . 2 . . Investigation 1 | . 1 . . Extermination . | . . . . Reinforcement 1 | . 1 . . Assault . | . . . . Garrison . | . . . . Intercept . | . . . . Searches Triggered . | . . . . Construction Impeded . | . . . . Haulers Reinforced . | . . . . Active Scanning Responses . | . . . . Cargo Convoy Interrupts . | . . . . Stealth | -11 -10 -10 -10 --------- Run | Yrd Mat Min Sub Distress Signals 1 | . 1 . . Communications Jammed . | . . . . Distress Signals . | . . . . Times Spotted 24 | . 13 5 6 Peak Tracking Total 5 | . 2 2 5 Tactical Retreats 2 | . 1 1 . Traps | -11 -10 -10 -10 ------- Run | Yrd Mat Min Sub Traps Triggered 3 | . 3 . . Indirectly . | . . . . Trap Hack Attempts . | . . . . Triggered . | . . . . Disarmed . | . . . . Reprogrammed . | . . . . Reused . | . . . . Traps Extracted . | . . . . Installed . | . . . . Triggered . | . . . . Machines | -11 -10 -10 -10 ---------- Run | Yrd Mat Min Sub Machines Disabled 1 | . 1 . . Max in Single Turn 1 | . 1 . . Machines Repaired . | . . . . Machines Dismantled . | . . . . Machines Sabotaged . | . . . . Overloaded Fab Kills . | . . . . Hacking | -11 -10 -10 -10 --------- Run | Yrd Mat Min Sub Machines Accessed 6 | . 4 2 . Terminals 6 | . 4 2 . Fabricators . | . . . . Repair Stations . | . . . . Recycling Units . | . . . . Scanalyzers . | . . . . Garrison Access . | . . . . Total Hacks 21 | . 18 3 . Successful 9 | . 8 1 . Failed 12 | . 10 2 . Catastrophic . | . . . . Database Lockouts . | . . . . Manual 7 | . 7 . . Terminals 21 | . 18 3 . Fabricators . | . . . . Repair Stations . | . . . . Recycling Units . | . . . . Scanalyzers . | . . . . Garrison Access . | . . . . Terminal Hacks 9 | . 8 1 . Record 1 | . 1 . . Robot Analysis 2 | . 2 . . Prototype ID Bank 1 | . 1 . . Transport Status 1 | . 1 . . Zone Layout 4 | . 3 1 . Fabricator Hacks . | . . . . Repair Station Hacks . | . . . . Recycling Unit Hacks . | . . . . Scanalyzer . | . . . . Garrison Access Hacks . | . . . . Unauthorized Hacks . | . . . . Terminals . | . . . . Fabricators . | . . . . Repair Stations . | . . . . Recycling Units . | . . . . Scanalyzers . | . . . . Garrison Access . | . . . . Data Cores Recovered . | . . . . Used . | . . . . Hacking Detections 5 | . 4 1 . Full Trace Events 1 | . 1 . . Feedback Events . | . . . . Feedback Blocked . | . . . . Robot Schematics Acquired . | . . . . Robots Built . | . . . . Authchips . | . . . . Time . | . . . . Total Robot Build Rating . | . . . . Part Schematics Acquired . | . . . . Parts Built . | . . . . Authchips . | . . . . Time . | . . . . Total Part Build Rating . | . . . . Parts Repaired . | . . . . Time . | . . . . Parts Recycled . | . . . . Recycled Matter . | . . . . Retrieved Matter . | . . . . Retrieved Components . | . . . . Parts Scanalyzed . | . . . . Part Schematics Acquired . | . . . . Parts Damaged . | . . . . Bothacking | -11 -10 -10 -10 ------------ Run | Yrd Mat Min Sub Used RIF Installer . | . . . . Robots Hacked . | . . . . Non-combat . | . . . . Combat . | . . . . Robot Hacks Applied . | . . . . Relay Couplers Released . | . . . . Fabnet Peak Effective % . | . . . . Robots Rewired . | . . . . Allies Hacked . | . . . . Hacks Repelled . | . . . . Allies | -11 -10 -10 -10 -------- Run | Yrd Mat Min Sub Total Allies . | . . . . Largest Group . | . . . . Highest-Rated Group . | . . . . Highest-Rated Ally . | . . . . Total Orders . | . . . . Ally Attacks . | . . . . Total Damage . | . . . . Kills . | . . . . Allies Corrupted . | . . . . Allies Melted . | . . . . Intel | -11 -10 -10 -10 ------- Run | Yrd Mat Min Sub Active Infowar (turns) 3820 | 8 1549 1956 307 Sensors 204 | . . . 204 Terrain 3616 | 8 1549 1956 103 Robot Analysis Total 2 | . 2 . . Derelict Logs Recovered 3 | . . 3 . Drone Launches . | . . . . Drone Recoveries . | . . . . Exploration | -11 -10 -10 -10 ------------- Run | Yrd Mat Min Sub Turns Passed 3862 | 26 1549 1956 331 Spaces Moved 1815 | 9 854 792 160 Core 5 | . . . 5 Treads 1810 | 9 854 792 155 Legs . | . . . . Wheels . | . . . . Hover . | . . . . Flight . | . . . . Fastest Speed 160 | 160 160 160 160 Average Speed 160 | 160 160 160 167 Slowest Speed 450 | 160 160 160 450 Overloaded Moves . | . . . . Propulsion Burnouts . | . . . . Robots Hopped . | . . . . Potential Cave-ins . | . . . . Cave-ins Triggered . | . . . . Exploration Rate (%) 51 | 2 91 94 17 Regions Visited 3 Branch Regions 2 Pre-discovered Areas 2 | . . 2 . Known Exits Taken . | . . . . Unknown Exits Taken 3 | 1 1 1 . Scrap Searched 1 | . . 1 . Spaces Dug . | . . . . Terrain Destroyed 1 | . . . 1 Melee . | . . . . Projectile 1 | . . . 1 AOE . | . . . . Terrain Rammed . | . . . . Walls Destroyed . | . . . . Machines Disabled . | . . . . Actions | -11 -10 -10 -10 --------- Run | Yrd Mat Min Sub Total 2532 | 14 944 1387 187 Wait 570 | . 25 545 . Move 1812 | 8 853 791 160 Hop . | . . . . Pick Up 8 | . 7 . 1 Fast Attach 2 | 1 . . 1 Attach 7 | . 2 . 5 Detach . | . . . . Swap 7 | 2 2 3 . Drop 5 | . 3 1 1 Fire 121 | 3 52 47 19 Melee . | . . . . Ram . | . . . . Kick . | . . . . Crush . | . . . . Escape Stasis . | . . . . Rewire . | . . . . Trap . | . . . . Miscellaneous . | . . . . Route ------- -11/Scrapyard -10/Materials (discovered 4 exits: [*Mat x3] / *Min) -10/Mines (discovered 4 exits: [*Mat x2] / [*Exi] / [*Sub]) -10/Subcaves History --------- Turn | Location | Event 13 | -11/Scrapyard | Discovered new exit (range 2) 27 | -11/Scrapyard | Entered Materials 177 | -10/Materials | Met 8R-AWN 215 | -10/Materials | Discovered new exit (range 14) 316 | -10/Materials | Build established: Mutant 615 | -10/Materials | Discovered new exit (range 16) 878 | -10/Materials | Discovered new exit (range 9) 1325 | -10/Materials | Discovered new exit (range 11) 1576 | -10/Materials | Entered Mines 1578 | -10/Mines | Followed 8R-AWN into the Mines 1586 | -10/Mines | Discovered new exit (range 14) 1716 | -10/Mines | Learned location of 1 exit from Materials 1759 | -10/Mines | Learned location of Zion (-7) 1805 | -10/Mines | Discovered new exit (range 6) 1950 | -10/Mines | Excavation squad dispatched 1950 | -10/Mines | A large section of the Mines collapsed 2160 | -10/Mines | Discovered new exit (range 5) 2346 | -10/Mines | A weapon hastily lodged in a ceiling crevice suddenly fell to the ground 3480 | -10/Mines | Discovered new exit (range 5) 3532 | -10/Mines | Entered Subcaves 3533 | -10/Subcaves | Approached by a straggling Scientist 3722 | -10/Subcaves | Shifting Twisted Machinery released Mak. System Shield 3802 | -10/Subcaves | Ambushed by Subdweller buried in earth 3802 | -10/Subcaves | Ambushed by Subdweller buried in earth 3802 | -10/Subcaves | Ambushed by Subdweller buried in earth 3845 | -10/Subcaves | Core integrity fell below 50% 3860 | -10/Subcaves | Core integrity fell below 20% 3863 | -10/Subcaves | Destroyed by CG-R5X(R) with Subdweller Shrapnel Launcher Last Messages --------------- 03807_ VJ-FX4(R) destroyed. 03810_ 6D-TGS(R) knocked back. 03811_ Lgt. Treads destroyed. 03813_ Battle Cannon destroyed. 03814_ Sub. Laser melted. 03814_ 6D-TGS(R) destroyed. 03817_ Lgt. Cannon destroyed. 03818_ Subatomizers dissect the Wheel. 03819_ Ion Engine destroyed. 03827_ GY-TGF(R) affixes Scrap Shield Fragment to Scrap Shield. 03830_ GY-TGF(R) destroyed. 03832_ Subatomizers dissect the Wheel. 03840_ Aluminum Leg destroyed. 03840_ Beam Cannon destroyed. 03840_ Sensor Array destroyed. 03849_ Dropped Lrg. Storage Unit. 03850_ Acquired Scrap Shield. 03859_ Scrap Shield destroyed. 03859_ Sml. Laser destroyed. Map ----- +----------------------------------------------------+ | ?????????????????????????????????????????????????? | | ?????????????????????????????????????????????????? | | ?????????????????????????????????????????????????? | | ?????????????????????????????????????????????????? | | ?????????????????????????????????????????????????? | | ?????????????????????????????????????????????????? | | ?????????????????????????????????????????????????? | | ?????????????????????????????????????????????????? | | ?????????????????????????????????????????????????? | | ?????????????????????????????????????????????????? | | ?????????????????????????????????????????????????? | | ?????????????????????????????????????????????????? | | ?????????????????????????????????????????????????? | | ?????????????????????????????????????????????????? | | ?????????????????????????????????????????????????? | | ?????????????????????????????????????????????????? | | ????????????????????????##???????????????????????? | | ?????????????????????#### ####???????????????????? | | ????????????????????## # ##??????????????????? | | ???????###"##????#### ???????????????????? | | ???????# &##???# ##??????????????????? | | ########" ##### #??????????????????? | | # " #;;; #??????????????????? | | #??????????????????? | | RR ! ##?????????????????? | | # ##" % @![ #?????????????????? | | # # #?" = ##?????????????????? | | #?# ; ; ;; #??????????????????? | | ## #?###### ;;; #??????????????????? | | ######??????####### ; #??????????????????? | | ??????????????????# ;; ; ###??????????????????? | | ??????????????????# ; ; ####????????????????????? | | ??????????????????# ;RR;##???????????????????????? | | ??????????????????# ; ?????????????????????????? | | ??????????????????##; ?????????????????????????? | | ???????????????????## ?????????????????????????? | | ???????????????????? ?????????????????????????? | | ???????????????????? ????????????????????????? | | ???????????????????## ?????????????????????????? | | ????????????????????? ?????????????????????????? | | ?????????????????????????????????????????????????? | | ?????????????????????????????????????????????????? | | ?????????????????????????????????????????????????? | | ?????????????????????????????????????????????????? | | ?????????????????????????????????????????????????? | | ?????????????????????????????????????????????????? | | ?????????????????????????????????????????????????? | | ?????????????????????????????????????????????????? | | ?????????????????????????????????????????????????? | | ?????????????????????????????????????????????????? | +----------------------------------------------------+ Best States ------------- Heat Dissipation 25 Energy Generation 10 Energy Capacity 250 Matter Stores 300 Matter Capacity 300 Sight Range 16 Robot Scan Range 14 Terrain Scan Range 16 Terrain Scan Density 10 Evasion (%) 40 Recoil Reduction 2 Item Schematics ----------------- None Robot Schematics ------------------ None Fabricated ------------ Nothing Repaired ---------- Nothing Alien Tech Used ----------------- None Achievements -------------- None Challenges ------------ None Game ------ Seed AerolevBurstRipteeth Manual? 0 Play Time 00:20:21 Cumulative 22.9 hours Start 2025.07.23 @ 12:32:13 End 2025.07.23 @ 12:55:26 Sessions 1 Manual Loads 0 Difficulty Rogue Special Mode None Game No. 42 Rogue 42 Adventurer 0 Explorer 0 Win Type - Total 0 Types 0/0/0/0/0/0/0/0/0/0 Lore% 12 Gallery% 18 Achievement% 23 Wizard Run 0 Options --------- Layout 1 ASCII 0 Keyboard 0 Movement Arrows Keybinds 0 Fullscreen 1 Font 24/Smallcaps Map View 50x35 Zoom Use 0% Tactical HUD 1 Map Filters NONE Filters NONE Steam 1 RUN: 98c0a173-61d3-437f-8d5d-98821a8502f2